[Event "Late-Titled-Tuesday-Blitz-March-12-2024"]
[Site "Chess.com"]
[Date "2024.03.12"]
[Round "1"]
[White "scarabee43"]
[Black "RichardShtivelband"]
[Result "1-0"]
[WhiteElo "2863"]
[BlackElo "2492"]
[TimeControl "180+1"]
[EndTime "14:04:57 PDT"]
[Termination "scarabee43 won by resignation"]

1. Nf3 {[%clk 0:03:00.9]} 1... Nf6 {[%clk 0:02:59.4]} 2. c4 {[%clk 0:03:01.2]}
2... e6 {[%clk 0:02:59.1]} 3. Nc3 {[%clk 0:03:01.3]} 3... c5 {[%clk 0:02:58.7]}
4. d4 {[%clk 0:02:59.4]} 4... cxd4 {[%clk 0:02:58.4]} 5. Nxd4 {[%clk 0:03:00]}
5... Be7 {[%clk 0:02:58.6]} 6. g3 {[%clk 0:02:59.2]} 6... O-O {[%clk 0:02:58.1]}
7. Bg2 {[%clk 0:02:59.9]} 7... Nc6 {[%clk 0:02:58.1]} 8. O-O {[%clk 0:03:00.1]}
8... a6 {[%clk 0:02:57.8]} 9. b3 {[%clk 0:02:57.5]} 9... Qa5 {[%clk 0:02:55.5]}
10. Bb2 {[%clk 0:02:55.2]} 10... Rd8 {[%clk 0:02:54.1]} 11. e4 {[%clk 0:02:51]}
11... d6 {[%clk 0:02:47]} 12. Qd2 {[%clk 0:02:34.4]} 12... Qh5 {[%clk
0:02:44.2]} 13. Rad1 {[%clk 0:02:23.8]} 13... Bd7 {[%clk 0:02:37.3]} 14. Rfe1
{[%clk 0:01:59]} 14... Rac8 {[%clk 0:02:35.9]} 15. Nde2 {[%clk 0:01:52.8]} 15...
Ng4 {[%clk 0:02:24.2]} 16. h3 {[%clk 0:01:52.2]} 16... Nge5 {[%clk 0:02:24.1]}
17. Qe3 {[%clk 0:01:47.5]} 17... Nb4 {[%clk 0:02:16.9]} 18. Rd2 {[%clk 0:01:34]}
18... d5 {[%clk 0:01:42.7]} 19. Nf4 {[%clk 0:01:16.1]} 19... Qg5 {[%clk
0:01:19.7]} 20. exd5 {[%clk 0:01:14.6]} 20... Bc5 {[%clk 0:01:02.4]} 21. Qxe5
{[%clk 0:01:13.7]} 21... Qxg3 {[%clk 0:01:02.5]} 22. Ne4 {[%clk 0:01:08.7]} 1-0

[Event "Late-Titled-Tuesday-Blitz-March-12-2024"]
[Site "Chess.com"]
[Date "2024.03.12"]
[Round "1"]
[White "AlexTruskavetsky"]
[Black "AlexandreHouhou"]
[Result "1-0"]
[WhiteElo "2684"]
[BlackElo "2332"]
[TimeControl "180+1"]
[EndTime "14:05:10 PDT"]
[Termination "AlexTruskavetsky won by resignation"]

1. d4 {[%clk 0:02:25.6]} 1... d5 {[%clk 0:02:59.5]} 2. c4 {[%clk 0:02:24.9]}
2... c6 {[%clk 0:03:00.1]} 3. Nf3 {[%clk 0:02:24.3]} 3... Nf6 {[%clk 0:03:00.7]}
4. e3 {[%clk 0:02:24.8]} 4... Bg4 {[%clk 0:02:59.5]} 5. h3 {[%clk 0:02:24.2]}
5... Bh5 {[%clk 0:02:59.5]} 6. Nbd2 {[%clk 0:02:24.2]} 6... e6 {[%clk
0:02:59.3]} 7. Bd3 {[%clk 0:02:23.6]} 7... Nbd7 {[%clk 0:02:59.2]} 8. O-O {[%clk
0:02:23.6]} 8... Bd6 {[%clk 0:02:57.9]} 9. b3 {[%clk 0:02:23.8]} 9... O-O {[%clk
0:02:56.7]} 10. Bb2 {[%clk 0:02:23.8]} 10... Qe7 {[%clk 0:02:54.7]} 11. e4
{[%clk 0:02:19.8]} 11... dxe4 {[%clk 0:02:54]} 12. Nxe4 {[%clk 0:02:20.7]} 12...
Nxe4 {[%clk 0:02:54.3]} 13. Bxe4 {[%clk 0:02:21.6]} 13... e5 {[%clk 0:02:49.3]}
14. dxe5 {[%clk 0:02:21.7]} 14... Nxe5 {[%clk 0:02:48.8]} 15. Re1 {[%clk
0:02:21.4]} 15... Nxf3+ {[%clk 0:02:23.2]} 16. Bxf3 {[%clk 0:02:21.3]} 16...
Bxf3 {[%clk 0:02:23]} 17. Qxf3 {[%clk 0:02:22.2]} 17... Qg5 {[%clk 0:02:20.4]}
18. Rad1 {[%clk 0:02:18.6]} 18... Bb4 {[%clk 0:02:18.2]} 19. Re4 {[%clk
0:02:17.7]} 19... h5 {[%clk 0:02:07.9]} 20. Re5 {[%clk 0:02:15.1]} 20... Qg6
{[%clk 0:02:03.2]} 21. h4 {[%clk 0:02:03.8]} 21... Rad8 {[%clk 0:01:54.5]} 22.
Rg5 {[%clk 0:01:59.9]} 22... Rxd1+ {[%clk 0:00:44.6]} 23. Qxd1 {[%clk
0:01:59.7]} 23... Qh7 {[%clk 0:00:44.8]} 24. Rxg7+ {[%clk 0:01:56.5]} 24... Qxg7
{[%clk 0:00:45.7]} 25. Bxg7 {[%clk 0:01:56.9]} 25... Kxg7 {[%clk 0:00:46.6]} 26.
Qxh5 {[%clk 0:01:55.6]} 26... Re8 {[%clk 0:00:40.9]} 27. c5 {[%clk 0:01:53.8]}
27... Bc3 {[%clk 0:00:26.6]} 28. Qg4+ {[%clk 0:01:53.3]} 28... Kf8 {[%clk
0:00:26.8]} 29. Qd7 {[%clk 0:01:52.6]} 29... Re1+ {[%clk 0:00:22.8]} 30. Kh2
{[%clk 0:01:52.4]} 30... Be5+ {[%clk 0:00:23.3]} 31. g3 {[%clk 0:01:52.8]} 31...
Re2 {[%clk 0:00:23.1]} 32. Kg2 {[%clk 0:01:51.2]} 32... Kg8 {[%clk 0:00:23.4]}
33. Qxb7 {[%clk 0:01:50.5]} 1-0

[Event "Late-Titled-Tuesday-Blitz-March-12-2024"]
[Site "Chess.com"]
[Date "2024.03.12"]
[Round "1"]
[White "ATM622"]
[Black "rezamahdavi2008"]
[Result "0-1"]
[WhiteElo "2488"]
[BlackElo "2860"]
[TimeControl "180+1"]
[EndTime "14:05:12 PDT"]
[Termination "rezamahdavi2008 won by checkmate"]

1. d4 {[%clk 0:02:58.5]} 1... Nf6 {[%clk 0:02:57.1]} 2. c4 {[%clk 0:02:59]} 2...
e6 {[%clk 0:02:56.9]} 3. g3 {[%clk 0:02:59.6]} 3... d5 {[%clk 0:02:56.9]} 4. Bg2
{[%clk 0:02:57.4]} 4... Bb4+ {[%clk 0:02:54.3]} 5. Nd2 {[%clk 0:02:56.7]} 5...
O-O {[%clk 0:02:48.3]} 6. Qc2 {[%clk 0:02:56.3]} 6... b6 {[%clk 0:02:46.8]} 7.
Nf3 {[%clk 0:02:54]} 7... Bb7 {[%clk 0:02:39.7]} 8. O-O {[%clk 0:02:54]} 8...
Nbd7 {[%clk 0:02:38.6]} 9. a3 {[%clk 0:02:53.1]} 9... Be7 {[%clk 0:02:14]} 10.
Rd1 {[%clk 0:02:50.1]} 10... c5 {[%clk 0:01:50.7]} 11. e3 {[%clk 0:02:44.7]}
11... Rc8 {[%clk 0:01:50.5]} 12. b3 {[%clk 0:02:34.5]} 12... dxc4 {[%clk
0:01:48.6]} 13. bxc4 {[%clk 0:02:28]} 13... cxd4 {[%clk 0:01:48.6]} 14. exd4
{[%clk 0:02:25.8]} 14... Qc7 {[%clk 0:01:48.9]} 15. Bb2 {[%clk 0:02:23.6]} 15...
Rfd8 {[%clk 0:01:48.4]} 16. Rac1 {[%clk 0:02:22.8]} 16... Qb8 {[%clk 0:01:47.8]}
17. Qb1 {[%clk 0:02:21.5]} 17... Qa8 {[%clk 0:01:48.4]} 18. Ne1 {[%clk
0:02:18.1]} 18... Bxg2 {[%clk 0:01:48.3]} 19. Nxg2 {[%clk 0:02:19]} 19... Rc7
{[%clk 0:01:44.3]} 20. Ne3 {[%clk 0:02:17.3]} 20... Rdc8 {[%clk 0:01:44.7]} 21.
Qd3 {[%clk 0:02:12.6]} 21... Nf8 {[%clk 0:01:40.1]} 22. d5 {[%clk 0:01:57.8]}
22... Rd8 {[%clk 0:01:38.1]} 23. Bxf6 {[%clk 0:01:53.1]} 23... Bxf6 {[%clk
0:01:39]} 24. Ne4 {[%clk 0:01:50.4]} 24... Be7 {[%clk 0:01:22.8]} 25. Qb1 {[%clk
0:01:49.6]} 25... Rcd7 {[%clk 0:01:13.9]} 26. h4 {[%clk 0:01:40.3]} 26... Bxa3
{[%clk 0:01:11.9]} 27. Rc3 {[%clk 0:01:37]} 27... Be7 {[%clk 0:01:11.2]} 28. g4
{[%clk 0:01:34]} 28... Ng6 {[%clk 0:01:04.9]} 29. h5 {[%clk 0:01:25.8]} 29...
Nf4 {[%clk 0:01:05.5]} 30. h6 {[%clk 0:01:25.8]} 30... exd5 {[%clk 0:01:02.3]}
31. Ng3 {[%clk 0:01:20.2]} 31... d4 {[%clk 0:00:59.9]} 32. Nef5 {[%clk
0:01:13.1]} 32... Qg2# {[%clk 0:00:58.6]} 0-1

[Event "Late-Titled-Tuesday-Blitz-March-12-2024"]
[Site "Chess.com"]
[Date "2024.03.12"]
[Round "1"]
[White "mitrabhaa"]
[Black "steepedgames"]
[Result "1-0"]
[WhiteElo "2952"]
[BlackElo "2532"]
[TimeControl "180+1"]
[EndTime "14:05:14 PDT"]
[Termination "mitrabhaa won by resignation"]

1. d4 {[%clk 0:03:00.9]} 1... f5 {[%clk 0:02:58.1]} 2. Nf3 {[%clk 0:03:01.3]}
2... Nf6 {[%clk 0:02:55]} 3. Bg5 {[%clk 0:03:00.2]} 3... e6 {[%clk 0:02:53.6]}
4. Nbd2 {[%clk 0:02:59.3]} 4... Be7 {[%clk 0:02:53.6]} 5. Bxf6 {[%clk
0:02:59.3]} 5... Bxf6 {[%clk 0:02:53.5]} 6. e4 {[%clk 0:03:00]} 6... d5 {[%clk
0:02:48.6]} 7. exf5 {[%clk 0:02:59.5]} 7... exf5 {[%clk 0:02:48.8]} 8. Bd3
{[%clk 0:03:00.2]} 8... O-O {[%clk 0:02:47.8]} 9. O-O {[%clk 0:03:00.2]} 9...
Nc6 {[%clk 0:02:36.3]} 10. c3 {[%clk 0:02:59.8]} 10... Re8 {[%clk 0:02:35.3]}
11. Qc2 {[%clk 0:02:59.2]} 11... g6 {[%clk 0:02:34.5]} 12. Rae1 {[%clk
0:02:59.8]} 12... Bd7 {[%clk 0:02:33.3]} 13. Rxe8+ {[%clk 0:02:59.6]} 13... Qxe8
{[%clk 0:02:27.3]} 14. Re1 {[%clk 0:03:00.5]} 14... Qf7 {[%clk 0:02:26]} 15. Ne5
{[%clk 0:03:00.6]} 15... Nxe5 {[%clk 0:02:21.8]} 16. dxe5 {[%clk 0:03:01.5]}
16... Re8 {[%clk 0:02:21]} 17. f4 {[%clk 0:03:00.6]} 17... c5 {[%clk 0:02:16.6]}
18. Nf3 {[%clk 0:02:57.2]} 18... Bd8 {[%clk 0:02:14.7]} 19. Kh1 {[%clk 0:02:55]}
19... Bc6 {[%clk 0:02:13]} 20. Qf2 {[%clk 0:02:52.8]} 20... b6 {[%clk 0:02:12]}
21. Qe2 {[%clk 0:02:50.4]} 21... Re6 {[%clk 0:02:05.8]} 22. Bb5 {[%clk
0:02:48.1]} 22... Qd7 {[%clk 0:02:03.6]} 23. Bxc6 {[%clk 0:02:47.1]} 23... Qxc6
{[%clk 0:02:04.5]} 24. Rd1 {[%clk 0:02:47.5]} 24... Re7 {[%clk 0:01:52.3]} 25.
Qa6 {[%clk 0:02:46.8]} 25... Rd7 {[%clk 0:01:46.6]} 26. a4 {[%clk 0:02:46.6]}
26... Be7 {[%clk 0:01:44.1]} 27. Qb5 {[%clk 0:02:45.4]} 27... Qxb5 {[%clk
0:01:41.7]} 28. axb5 {[%clk 0:02:46.3]} 28... Kf7 {[%clk 0:01:41.8]} 29. g3
{[%clk 0:02:43.7]} 29... Ke6 {[%clk 0:01:41.4]} 30. Kg2 {[%clk 0:02:44.2]} 30...
Bd8 {[%clk 0:01:29.6]} 31. h3 {[%clk 0:02:41.4]} 31... h5 {[%clk 0:01:29.4]} 32.
Kf2 {[%clk 0:02:39.8]} 32... Rh7 {[%clk 0:01:26.8]} 33. Ra1 {[%clk 0:02:35.8]}
33... Rd7 {[%clk 0:01:24.7]} 34. Ke3 {[%clk 0:02:35.6]} 34... Be7 {[%clk
0:01:23.7]} 35. Rg1 {[%clk 0:02:33.5]} 35... Bd8 {[%clk 0:01:06.1]} 36. Kd3
{[%clk 0:02:32.6]} 36... Be7 {[%clk 0:01:05]} 37. Nd2 {[%clk 0:02:21.2]} 37...
Bd8 {[%clk 0:01:03.4]} 38. Nf1 {[%clk 0:02:17.5]} 38... d4 {[%clk 0:01:03]} 39.
c4 {[%clk 0:02:17.2]} 39... Rg7 {[%clk 0:00:55.1]} 40. h4 {[%clk 0:02:11]} 40...
Rd7 {[%clk 0:00:53.6]} 41. Nd2 {[%clk 0:02:11]} 41... Be7 {[%clk 0:00:51]} 42.
Ra1 {[%clk 0:02:11.5]} 42... Kf7 {[%clk 0:00:43.7]} 43. Ra6 {[%clk 0:02:11.4]}
43... Ke6 {[%clk 0:00:42.5]} 44. Nb3 {[%clk 0:02:11.6]} 44... Kf7 {[%clk
0:00:42.2]} 45. Ra1 {[%clk 0:02:11.5]} 45... Bd8 {[%clk 0:00:40.9]} 46. Re1
{[%clk 0:02:10.8]} 46... Be7 {[%clk 0:00:41.4]} 47. e6+ {[%clk 0:02:10.3]} 47...
Ke8 {[%clk 0:00:41.4]} 48. exd7+ {[%clk 0:02:11.2]} 48... Kxd7 {[%clk
0:00:42.2]} 49. Nd2 {[%clk 0:02:11.2]} 1-0

[Event "Late-Titled-Tuesday-Blitz-March-12-2024"]
[Site "Chess.com"]
[Date "2024.03.12"]
[Round "1"]
[White "BogdanDeac"]
[Black "bazar-wokzal"]
[Result "1-0"]
[WhiteElo "3056"]
[BlackElo "2554"]
[TimeControl "180+1"]
[EndTime "14:05:23 PDT"]
[Termination "BogdanDeac won by resignation"]

1. d4 {[%clk 0:03:00.9]} 1... Nf6 {[%clk 0:02:59]} 2. c4 {[%clk 0:02:58.7]} 2...
Nc6 {[%clk 0:02:59.2]} 3. Nf3 {[%clk 0:02:55.3]} 3... e6 {[%clk 0:02:59.1]} 4.
g3 {[%clk 0:02:55.3]} 4... Bb4+ {[%clk 0:02:58.5]} 5. Bd2 {[%clk 0:02:54.7]}
5... a5 {[%clk 0:02:59.1]} 6. Bg2 {[%clk 0:02:54.5]} 6... d6 {[%clk 0:02:59.1]}
7. O-O {[%clk 0:02:53.3]} 7... e5 {[%clk 0:02:59.6]} 8. e3 {[%clk 0:02:41.5]}
8... Bg4 {[%clk 0:02:49.4]} 9. h3 {[%clk 0:02:41.2]} 9... Bxf3 {[%clk
0:02:42.9]} 10. Bxf3 {[%clk 0:02:40.3]} 10... Bxd2 {[%clk 0:02:29.9]} 11. Qxd2
{[%clk 0:02:38.1]} 11... O-O {[%clk 0:02:28.8]} 12. Nc3 {[%clk 0:02:38]} 12...
Re8 {[%clk 0:02:23.9]} 13. Rfd1 {[%clk 0:02:36.6]} 13... Qe7 {[%clk 0:02:21.8]}
14. Rac1 {[%clk 0:02:35.4]} 14... h6 {[%clk 0:02:17.3]} 15. Bg2 {[%clk
0:02:15.9]} 15... Rad8 {[%clk 0:02:13]} 16. Nd5 {[%clk 0:02:13.7]} 16... Nxd5
{[%clk 0:02:03.2]} 17. cxd5 {[%clk 0:02:13.4]} 17... Nb4 {[%clk 0:02:02.8]} 18.
a3 {[%clk 0:02:12.2]} 18... Na6 {[%clk 0:01:59.2]} 19. Qxa5 {[%clk 0:02:09.3]}
19... Rc8 {[%clk 0:01:50]} 20. dxe5 {[%clk 0:02:02.1]} 20... Qxe5 {[%clk
0:01:38.4]} 21. b4 {[%clk 0:02:02.3]} 21... Nb8 {[%clk 0:01:37.9]} 22. Rxc7
{[%clk 0:01:56.7]} 22... Rxc7 {[%clk 0:01:32]} 23. Qxc7 {[%clk 0:01:55.7]} 23...
Qb2 {[%clk 0:01:27.1]} 24. Qxd6 {[%clk 0:01:51]} 24... Qxa3 {[%clk 0:01:26.9]}
25. Qb6 {[%clk 0:01:49.1]} 25... Qb3 {[%clk 0:01:17.8]} 26. Bf3 {[%clk
0:01:43.5]} 26... Nd7 {[%clk 0:01:07.8]} 27. Qb5 {[%clk 0:01:41.5]} 27... Rd8
{[%clk 0:00:51.1]} 28. d6 {[%clk 0:01:41.5]} 28... b6 {[%clk 0:00:46.4]} 29. Kg2
{[%clk 0:01:39.5]} 29... Kh8 {[%clk 0:00:42.5]} 30. Rd4 {[%clk 0:01:37.9]} 30...
f6 {[%clk 0:00:42.1]} 31. Bc6 {[%clk 0:01:26.9]} 31... Ne5 {[%clk 0:00:41.8]}
32. Qxb6 {[%clk 0:01:26.4]} 32... Nxc6 {[%clk 0:00:41.1]} 33. Qxc6 {[%clk
0:01:26.4]} 1-0

[Event "Late-Titled-Tuesday-Blitz-March-12-2024"]
[Site "Chess.com"]
[Date "2024.03.12"]
[Round "1"]
[White "Der_Balak_3Halak"]
[Black "ChessBrainiacOnTwitch"]
[Result "1-0"]
[WhiteElo "2459"]
[BlackElo "2770"]
[TimeControl "180+1"]
[EndTime "14:05:26 PDT"]
[Termination "Der_Balak_3Halak won by resignation"]

1. e4 {[%clk 0:03:00.2]} 1... c5 {[%clk 0:02:56.9]} 2. Nf3 {[%clk 0:02:59.7]}
2... d6 {[%clk 0:02:54.3]} 3. Bb5+ {[%clk 0:02:59.2]} 3... Nd7 {[%clk
0:02:52.7]} 4. O-O {[%clk 0:02:58.7]} 4... Nf6 {[%clk 0:02:51.8]} 5. Re1 {[%clk
0:02:57.3]} 5... a6 {[%clk 0:02:51.8]} 6. Bxd7+ {[%clk 0:02:57.2]} 6... Bxd7
{[%clk 0:02:50]} 7. c3 {[%clk 0:02:58.1]} 7... g6 {[%clk 0:02:48.4]} 8. d4
{[%clk 0:02:59]} 8... cxd4 {[%clk 0:02:46.5]} 9. cxd4 {[%clk 0:02:59.9]} 9...
Bg7 {[%clk 0:02:47.2]} 10. Nc3 {[%clk 0:02:59.8]} 10... O-O {[%clk 0:02:47.1]}
11. Bg5 {[%clk 0:02:57.7]} 11... Rc8 {[%clk 0:02:45.2]} 12. Qd2 {[%clk
0:02:56.6]} 12... Bg4 {[%clk 0:02:37.7]} 13. Qf4 {[%clk 0:02:33.7]} 13... Qd7
{[%clk 0:02:31.5]} 14. e5 {[%clk 0:02:30.4]} 14... Nh5 {[%clk 0:02:28.2]} 15.
Qe3 {[%clk 0:02:25.1]} 15... Rfe8 {[%clk 0:01:45.8]} 16. Rad1 {[%clk 0:02:18.4]}
16... b5 {[%clk 0:01:36.2]} 17. h3 {[%clk 0:02:14.5]} 17... Bxf3 {[%clk
0:01:34.9]} 18. Qxf3 {[%clk 0:02:15.4]} 18... dxe5 {[%clk 0:01:33.8]} 19. dxe5
{[%clk 0:02:13.6]} 19... Qe6 {[%clk 0:01:32]} 20. g4 {[%clk 0:02:01.9]} 20... h6
{[%clk 0:00:53.2]} 21. Bc1 {[%clk 0:02:01]} 21... b4 {[%clk 0:00:49.9]} 22. Nd5
{[%clk 0:01:54.2]} 22... Bxe5 {[%clk 0:00:22]} 23. gxh5 {[%clk 0:01:53.5]} 23...
g5 {[%clk 0:00:22.6]} 24. Kg2 {[%clk 0:01:33.1]} 24... Qd6 {[%clk 0:00:15]} 25.
Qe4 {[%clk 0:01:30.9]} 25... Bg7 {[%clk 0:00:14.9]} 26. Nxe7+ {[%clk 0:01:27.5]}
1-0

[Event "Late-Titled-Tuesday-Blitz-March-12-2024"]
[Site "Chess.com"]
[Date "2024.03.12"]
[Round "1"]
[White "zverr1"]
[Black "PNEPaul"]
[Result "1-0"]
[WhiteElo "2574"]
[BlackElo "1953"]
[TimeControl "180+1"]
[EndTime "14:05:27 PDT"]
[Termination "zverr1 won by resignation"]

1. e4 {[%clk 0:03:00.9]} 1... e5 {[%clk 0:02:59.9]} 2. Nf3 {[%clk 0:02:59.9]}
2... Nc6 {[%clk 0:02:58]} 3. Bc4 {[%clk 0:02:59.8]} 3... Be7 {[%clk 0:02:58]} 4.
d4 {[%clk 0:02:59.4]} 4... exd4 {[%clk 0:02:56.7]} 5. Nxd4 {[%clk 0:03:00.3]}
5... d6 {[%clk 0:02:56.7]} 6. Nc3 {[%clk 0:02:52.4]} 6... Nf6 {[%clk 0:02:56.7]}
7. O-O {[%clk 0:02:49.3]} 7... O-O {[%clk 0:02:55.4]} 8. h3 {[%clk 0:02:49.5]}
8... Nxd4 {[%clk 0:02:53.3]} 9. Qxd4 {[%clk 0:02:49.3]} 9... Be6 {[%clk
0:02:53.2]} 10. Bf4 {[%clk 0:02:46.2]} 10... Bxc4 {[%clk 0:02:39.7]} 11. Qxc4
{[%clk 0:02:47.1]} 11... Nd7 {[%clk 0:02:35]} 12. Rad1 {[%clk 0:02:40.7]} 12...
Nb6 {[%clk 0:02:30.9]} 13. Qd3 {[%clk 0:02:34.6]} 13... Bg5 {[%clk 0:02:28.1]}
14. Bh2 {[%clk 0:02:29.3]} 14... Bf6 {[%clk 0:02:18.8]} 15. b3 {[%clk
0:02:28.8]} 15... Bxc3 {[%clk 0:02:16.4]} 16. Qxc3 {[%clk 0:02:29]} 16... Rc8
{[%clk 0:02:14.9]} 17. e5 {[%clk 0:02:28.3]} 17... d5 {[%clk 0:02:14]} 18. Qc5
{[%clk 0:02:23.9]} 18... c6 {[%clk 0:02:06.8]} 19. Rfe1 {[%clk 0:02:24]} 19...
Qd7 {[%clk 0:01:52.9]} 20. a4 {[%clk 0:02:21.5]} 20... Qf5 {[%clk 0:01:34.9]}
21. a5 {[%clk 0:02:00.9]} 21... Nd7 {[%clk 0:01:32.7]} 22. Qxa7 {[%clk 0:02:01]}
22... Qxc2 {[%clk 0:01:29]} 23. Qxb7 {[%clk 0:02:00.5]} 23... Rfd8 {[%clk
0:01:28]} 24. Rc1 {[%clk 0:01:54]} 24... Qa2 {[%clk 0:01:21.4]} 25. a6 {[%clk
0:01:36.5]} 25... Qa5 {[%clk 0:01:07.1]} 26. e6 {[%clk 0:01:33.5]} 26... fxe6
{[%clk 0:01:02]} 27. b4 {[%clk 0:01:29.7]} 27... Qb5 {[%clk 0:00:59.1]} 28. Rxe6
{[%clk 0:01:27.1]} 28... Qxb7 {[%clk 0:00:54.1]} 29. axb7 {[%clk 0:01:26.9]}
29... Rb8 {[%clk 0:00:49.9]} 30. Bxb8 {[%clk 0:01:26.3]} 30... Rxb8 {[%clk
0:00:49.1]} 31. Rexc6 {[%clk 0:01:24.5]} 31... Rxb7 {[%clk 0:00:48]} 32. Rc7
{[%clk 0:01:24.9]} 32... Rxc7 {[%clk 0:00:44.8]} 33. Rxc7 {[%clk 0:01:25.8]}
33... Nb6 {[%clk 0:00:44.3]} 34. Rc6 {[%clk 0:01:24.9]} 34... Nc4 {[%clk
0:00:43.3]} 35. b5 {[%clk 0:01:24.6]} 35... Ne5 {[%clk 0:00:42.1]} 36. Rd6
{[%clk 0:01:20.4]} 1-0

[Event "Late-Titled-Tuesday-Blitz-March-12-2024"]
[Site "Chess.com"]
[Date "2024.03.12"]
[Round "1"]
[White "ACollins05"]
[Black "ljm509"]
[Result "1-0"]
[WhiteElo "2576"]
[BlackElo "2014"]
[TimeControl "180+1"]
[EndTime "14:05:28 PDT"]
[Termination "ACollins05 won on time"]

1. d4 {[%clk 0:02:49.2]} 1... Nf6 {[%clk 0:02:58.8]} 2. c4 {[%clk 0:02:46.6]}
2... e6 {[%clk 0:02:58.9]} 3. Nf3 {[%clk 0:02:43]} 3... d5 {[%clk 0:02:58.7]} 4.
g3 {[%clk 0:02:41.1]} 4... Be7 {[%clk 0:02:55.7]} 5. Bg2 {[%clk 0:02:25.3]} 5...
O-O {[%clk 0:02:55.4]} 6. O-O {[%clk 0:02:22.1]} 6... c6 {[%clk 0:02:50.5]} 7.
Nc3 {[%clk 0:02:20.6]} 7... dxc4 {[%clk 0:02:49]} 8. Ne5 {[%clk 0:02:18.5]} 8...
c5 {[%clk 0:02:26.5]} 9. dxc5 {[%clk 0:02:14.4]} 9... Qc7 {[%clk 0:02:23]} 10.
Nxc4 {[%clk 0:02:10.4]} 10... Qxc5 {[%clk 0:02:22.7]} 11. Qb3 {[%clk 0:02:07.3]}
11... Na6 {[%clk 0:02:12.2]} 12. Be3 {[%clk 0:02:04.3]} 12... Qh5 {[%clk
0:02:11.8]} 13. Bf3 {[%clk 0:02:01.2]} 13... Qh3 {[%clk 0:02:10.5]} 14. Bg2
{[%clk 0:01:59.5]} 14... Qh5 {[%clk 0:02:10]} 15. h3 {[%clk 0:01:57.7]} 15...
Nc5 {[%clk 0:01:57]} 16. Qc2 {[%clk 0:01:54]} 16... Nd5 {[%clk 0:01:28.7]} 17.
Nxd5 {[%clk 0:01:43.6]} 17... exd5 {[%clk 0:01:27.6]} 18. g4 {[%clk 0:01:44.2]}
18... Qh4 {[%clk 0:00:46.7]} 19. Ne5 {[%clk 0:01:35]} 19... Ne4 {[%clk
0:00:35.6]} 20. Rad1 {[%clk 0:01:26.8]} 1-0

[Event "Late-Titled-Tuesday-Blitz-March-12-2024"]
[Site "Chess.com"]
[Date "2024.03.12"]
[Round "1"]
[White "TenisMaster"]
[Black "Actuary44"]
[Result "1-0"]
[WhiteElo "2888"]
[BlackElo "2512"]
[TimeControl "180+1"]
[EndTime "14:05:30 PDT"]
[Termination "TenisMaster won by resignation"]

1. e4 {[%clk 0:03:00.9]} 1... b6 {[%clk 0:03:00.1]} 2. d4 {[%clk 0:03:00.4]}
2... Bb7 {[%clk 0:03:00.8]} 3. Bd3 {[%clk 0:03:00.9]} 3... e6 {[%clk 0:03:01.4]}
4. Nf3 {[%clk 0:02:59.8]} 4... Nf6 {[%clk 0:03:02.2]} 5. Qe2 {[%clk 0:03:00]}
5... d5 {[%clk 0:03:02.9]} 6. e5 {[%clk 0:03:00]} 6... Nfd7 {[%clk 0:03:03.3]}
7. Nbd2 {[%clk 0:02:59.1]} 7... c5 {[%clk 0:03:03.9]} 8. c3 {[%clk 0:02:59.4]}
8... Nc6 {[%clk 0:03:04.5]} 9. a3 {[%clk 0:02:58.9]} 9... Qc7 {[%clk 0:03:05]}
10. h4 {[%clk 0:02:57.4]} 10... O-O-O {[%clk 0:03:05.4]} 11. b4 {[%clk
0:02:47.9]} 11... c4 {[%clk 0:03:05]} 12. Bc2 {[%clk 0:02:48.2]} 12... h6 {[%clk
0:03:05.7]} 13. Nf1 {[%clk 0:02:47.1]} 13... Be7 {[%clk 0:03:04.7]} 14. Ng3
{[%clk 0:02:45.7]} 14... g5 {[%clk 0:02:59.4]} 15. hxg5 {[%clk 0:02:36.6]} 15...
hxg5 {[%clk 0:03:00.3]} 16. Rxh8 {[%clk 0:02:36.1]} 16... Rxh8 {[%clk
0:02:59.6]} 17. Bxg5 {[%clk 0:02:36.8]} 17... Nf8 {[%clk 0:02:44.7]} 18. Qe3
{[%clk 0:02:33.8]} 18... Ng6 {[%clk 0:02:33.4]} 19. Ke2 {[%clk 0:02:12.5]} 19...
Bxg5 {[%clk 0:02:26.1]} 20. Qxg5 {[%clk 0:02:10.2]} 20... Nce7 {[%clk
0:02:24.5]} 21. Qf6 {[%clk 0:02:04.8]} 21... Ng8 {[%clk 0:02:10.8]} 22. Qg5
{[%clk 0:02:02.6]} 22... N8e7 {[%clk 0:01:58.8]} 23. Rh1 {[%clk 0:02:01.5]}
23... Rxh1 {[%clk 0:01:57.4]} 24. Nxh1 {[%clk 0:02:02.4]} 24... Qd8 {[%clk
0:01:56.9]} 25. Ng3 {[%clk 0:01:58]} 25... Qh8 {[%clk 0:01:56]} 26. Kd2 {[%clk
0:01:46.5]} 26... a5 {[%clk 0:01:55.4]} 27. Qh5 {[%clk 0:01:25.2]} 27... Qxh5
{[%clk 0:01:41.8]} 28. Nxh5 {[%clk 0:01:26.1]} 28... axb4 {[%clk 0:01:42.3]} 29.
axb4 {[%clk 0:01:25.6]} 29... Bc6 {[%clk 0:01:36.9]} 30. Ng5 {[%clk 0:01:23.4]}
30... Be8 {[%clk 0:01:30.3]} 31. Nf6 {[%clk 0:01:23.5]} 31... Kd8 {[%clk
0:01:30.4]} 32. g3 {[%clk 0:01:20.9]} 32... Nf5 {[%clk 0:01:18.8]} 33. Bxf5
{[%clk 0:01:18.5]} 33... exf5 {[%clk 0:01:19.7]} 34. Nxd5 {[%clk 0:01:18.1]}
34... Bc6 {[%clk 0:01:15.8]} 35. Nxb6 {[%clk 0:01:16.2]} 35... f4 {[%clk
0:01:15.9]} 36. Nxf7+ {[%clk 0:01:10.8]} 36... Ke7 {[%clk 0:01:13.2]} 37. Ng5
{[%clk 0:01:08.6]} 37... fxg3 {[%clk 0:01:12.8]} 38. fxg3 {[%clk 0:01:09.1]}
38... Nf8 {[%clk 0:01:08.2]} 39. d5 {[%clk 0:01:06.8]} 39... Bxd5 {[%clk
0:01:07.2]} 40. Nxd5+ {[%clk 0:01:06.4]} 40... Kd7 {[%clk 0:01:06.7]} 41. Ke3
{[%clk 0:01:06.2]} 41... Ng6 {[%clk 0:01:06.8]} 42. Ke4 {[%clk 0:01:06]} 1-0